[Event "MPL 47th National Women Chess-ch 2022"]
[Site "Odisha"]
[Date "2022.02.25"]
[Round "1.2"]
[White "Kulkarni Bhakti"]
[Black "Mrittika Mallick"]
[Result "0-1"]
[ECO "B13"]
[WhiteElo "2388"]
[BlackElo "1666"]
[Annotator "ChessBase"]
[PlyCount "160"]
[EventDate "2022.02.25"]
[EventCountry "IND"]
[SourceTitle "playchess.com"]
[Source "ChessBase"]
[SourceQuality "1"]
[TimeControl "5400+30"]

1. d4 {[%emt 0:00:06]} d5 {[%emt 0:00:15]} 2. Nf3 {[%emt 0:00:20]} Nf6 {[%emt 0:00:26]} 3. Bf4 {[%emt 0:01:18]} c5 {[%emt 0:01:42]} 4. e3 {[%emt 0:00:09]} Nc6 {[%emt 0:00:48]} 5. c3 {[%emt 0:01:48]} cxd4 {[%emt 0:01:08]} 6. exd4 {[%emt 0:01:55]} Bf5 {[%emt 0:00:50]} 7. Qb3 {[%emt 0:04:41]} Qc8 {[%emt 0:03:28]} 8. Be2 {[%emt 0:00:18]} e6 {[%emt 0:00:43]} 9. O-O {[%emt 0:00:49]} Be7 {[%emt 0:00:40]} 10. h3 {[%emt 0:01:38]} h6 {[%emt 1:25:30]} 11. Nbd2 O-O 12. Rfe1 a6 {[%emt 0:00:00]} 13. a4 Re8 {[%emt 0:00:00]} 14. Bf1 Ne4 {[%emt 0:00:00]} 15. Nxe4 Bxe4 {[%emt 0:00:00]} 16. Qd1 Bf6 {[%emt 0:00:00]} 17. Bd3 Bxd3 {[%emt 0:00:00]} 18. Qxd3 Qd8 {[%emt 0:00:00]} 19. Re2 Rc8 {[%emt 0:00:00]} 20. Kh1 Na5 {[%emt 0:00:00]} 21. Rg1 Nc4 {[%emt 0:00:00]} 22. g4 Nd6 {[%emt 0:00:00]} 23. g5 hxg5 {[%emt 0:00:00]} 24. Nxg5 Nf5 {[%emt 0:00:00]} 25. Qf3 Bxg5 {[%emt 0:00:00]} 26. Bxg5 f6 {[%emt 0:00:00]} 27. Bd2 Qd7 {[%emt 0:00:00]} 28. b3 b5 {[%emt 0:00:00]} 29. axb5 axb5 {[%emt 0:00:00]} 30. b4 Rf8 {[%emt 0:00:00]} 31. Qg4 Rce8 {[%emt 0:00:00]} 32. Rge1 Re7 {[%emt 0:00:00]} 33. h4 Ree8 {[%emt 0:00:00]} 34. h5 Qf7 {[%emt 0:00:00]} 35. Rg1 Kh8 {[%emt 0:00:00]} 36. f3 Kh7 {[%emt 0:00:00]} 37. Rge1 Kh8 {[%emt 0:00:00]} 38. Bf4 Re7 {[%emt 0:00:00]} 39. Qh3 Rc8 {[%emt 0:00:00]} 40. Bd2 Ra8 {[%emt 0:00:00]} 41. Rg1 Kh7 {[%emt 0:00:00]} 42. Reg2 Rh8 {[%emt 0:00:00]} 43. Rg6 Kg8 {[%emt 0:00:00]} 44. h6 Kf8 {[%emt 0:00:00]} 45. Qh2 Rb7 {[%emt 0:00:00]} 46. Bf4 Ke8 {[%emt 0:00:00]} 47. Qa2 Ra7 {[%emt 0:00:00]} 48. Qe2 Rb7 {[%emt 0:00:00]} 49. Qh2 Rd7 {[%emt 0:00:00]} 50. Qe2 Rb7 {[%emt 0:00:00]} 51. Qh2 Rd7 {[%emt 0:00:00]} 52. Bc1 Rb7 {[%emt 0:00:00]} 53. R1g4 Kf8 {[%emt 0:00:00]} 54. Kg1 gxh6 {[%emt 0:00:00]} 55. Bf4 Ke8 {[%emt 0:00:00]} 56. Bd2 h5 {[%emt 0:00:00]} 57. Rg2 Kd8 {[%emt 0:00:00]} 58. Rxf6 Qd7 {[%emt 0:00:00]} 59. Qe5 Re8 {[%emt 0:00:00]} 60. Rgg6 Nh4 {[%emt 0:00:00]} 61. Rg5 Qh7 {[%emt 0:00:00]} 62. Qd6+ Qd7 {[%emt 0:00:00]} 63. Qf4 Nf5 {[%emt 0:00:00]} 64. Rxh5 Qg7+ {[%emt 0:00:00]} 65. Qg4 Qc7 {[%emt 0:00:00]} 66. Rg5 Qh7 {[%emt 0:00:00]} 67. Rfg6 Ra7 {[%emt 0:00:00]} 68. Rh5 Qd7 {[%emt 0:00:00]} 69. Rg8 Ra1+ {[%emt 0:00:00]} 70. Kf2 Ra2 {[%emt 0:00:00]} 71. Ke1 Kc7 {[%emt 0:00:00]} 72. Rxe8 Qxe8 {[%emt 0:00:00]} 73. Rh7+ Kb6 {[%emt 0:00:00]} 74. Bf4 Qc6 {[%emt 0:00:00]} 75. Rc7 Ra1+ {[%emt 0:00:00]} 76. Kf2 Qa8 {[%emt 0:00:00]} 77. Qg5 Qa2+ {[%emt 0:00:00]} 78. Bd2 Kxc7 {[%emt 0:00:00]} 79. Qf4+ Kc6 {[%emt 0:00:00]} 80. Qg5 Qb1 {[%emt 0:00:00]} 0-1

[Event "MPL 47th National Women Chess-ch 2022"]
[Site "Odisha"]
[Date "2022.02.25"]
[Round "1.5"]
[White "Nisha, N. Patkar"]
[Black "Soumya, Swaminathan"]
[Result "0-1"]
[ECO "B31"]
[WhiteElo "1584"]
[BlackElo "2360"]
[Annotator "ChessBase"]
[PlyCount "68"]
[EventDate "2022.02.25"]
[EventCountry "IND"]
[SourceTitle "playchess.com"]
[Source "ChessBase"]
[SourceQuality "1"]
[TimeControl "5400+30"]

1. e4 {[%emt 0:00:06]} c5 {[%emt 0:00:13]} 2. Nf3 {[%emt 0:00:18]} Nc6 {[%emt 0:00:11]} 3. Bb5 {[%emt 0:00:23]} g6 {[%emt 0:00:44]} 4. O-O {[%emt 0:00:37]} Bg7 {[%emt 0:00:30]} 5. Re1 {[%emt 0:00:46]} e5 {[%emt 0:01:09]} 6. c3 {[%emt 0:03:30]} Nge7 {[%emt 0:02:57]} 7. d4 exd4 {[%emt 0:00:30]} 8. Bf4 a6 {[%emt 0:00:30]} 9. Bc4 d6 {[%emt 0:00:30]} 10. Ng5 O-O {[%emt 0:00:30]} 11. Qf3 Qe8 {[%emt 0:00:30]} 12. Bxd6 Ne5 {[%emt 0:00:30]} 13. Qe2 Qd7 {[%emt 0:00:30]} 14. Bxe5 Bxe5 {[%emt 0:00:30]} 15. cxd4 cxd4 {[%emt 0:00:30]} 16. Nd2 b5 {[%emt 0:00:30]} 17. Bd3 f6 {[%emt 0:00:30]} 18. Ngf3 Kg7 {[%emt 0:00:30]} 19. Nb3 Qd6 {[%emt 0:00:30]} 20. h3 Be6 {[%emt 0:00:30]} 21. Nfd2 g5 {[%emt 0:00:30]} 22. Rec1 Rfc8 {[%emt 0:00:30]} 23. Qf1 h5 {[%emt 0:00:30]} 24. Rxc8 Rxc8 {[%emt 0:00:30]} 25. Rc1 Rg8 {[%emt 0:00:30]} 26. a4 Bf4 {[%emt 0:00:30]} 27. Rc2 g4 {[%emt 0:00:30]} 28. hxg4 Bh2+ {[%emt 0:00:30]} 29. Kh1 hxg4 {[%emt 0:00:30]} 30. g3 Bxg3 {[%emt 0:00:30]} 31. Qg2 Rh8+ {[%emt 0:00:30]} 32. Kg1 Bh2+ {[%emt 0:00:30]} 33. Kf1 g3 {[%emt 0:00:30]} 34. Ke1 Bh3 {[%emt 0:00:30]} 0-1

[Event "MPL 47th National Women Chess-ch 2022"]
[Site "Odisha"]
[Date "2022.02.25"]
[Round "1.8"]
[White "Divya Deshmukh"]
[Black "Varshita Jain"]
[Result "1/2-1/2"]
[ECO "A08"]
[WhiteElo "2301"]
[BlackElo "1491"]
[Annotator "ChessBase"]
[PlyCount "109"]
[EventDate "2022.02.25"]
[EventCountry "IND"]
[SourceTitle "playchess.com"]
[Source "ChessBase"]
[SourceQuality "1"]
[TimeControl "5400+30"]

1. Nf3 {[%emt 0:00:26]} d5 {[%emt 0:00:10]} 2. b3 {[%emt 0:00:19]} Nf6 {[%emt 0:00:28]} 3. Bb2 {[%emt 0:00:03]} c5 {[%emt 1:31:22]} 4. g3 Nc6 5. Bg2 d4 6. d3 e5 7. Nbd2 Bd6 8. e3 O-O 9. O-O Re8 10. a4 Rb8 11. Nc4 Bc7 12. Nfd2 Ne7 13. Re1 a6 {[%emt 0:00:00]} 14. exd4 exd4 {[%emt 0:00:00]} 15. a5 Be6 {[%emt 0:00:00]} 16. Ba3 Ned5 {[%emt 0:00:00]} 17. Ne4 Nxe4 {[%emt 0:00:00]} 18. dxe4 Nc3 {[%emt 0:00:00]} 19. Qd3 Bxa5 {[%emt 0:00:00]} 20. Bxc5 Bxc4 {[%emt 0:00:00]} 21. Qxc4 b6 {[%emt 0:00:00]} 22. Ba3 Nb5 {[%emt 0:00:00]} 23. b4 Nxa3 {[%emt 0:00:00]} 24. Rxa3 b5 {[%emt 0:00:00]} 25. Qb3 Bb6 {[%emt 0:00:00]} 26. Rxa6 d3 {[%emt 0:00:00]} 27. cxd3 Qd4 {[%emt 0:00:00]} 28. Ra2 Ra8 {[%emt 0:00:00]} 29. Ree2 Red8 {[%emt 0:00:00]} 30. Bf1 g6 {[%emt 0:00:00]} 31. Rec2 Rxa2 {[%emt 0:00:00]} 32. Rxa2 Rc8 {[%emt 0:00:00]} 33. Qb2 Rc3 {[%emt 0:00:00]} 34. Ra8+ Kg7 {[%emt 0:00:00]} 35. Rb8 Rb3 {[%emt 0:00:00]} 36. Qxd4+ Bxd4 {[%emt 0:00:00]} 37. Rxb5 Rb2 {[%emt 0:00:00]} 38. Rd5 Bxf2+ {[%emt 0:00:00]} 39. Kh1 Rxb4 {[%emt 0:00:00]} 40. Bh3 Rd4 {[%emt 0:00:00]} 41. Rxd4 Bxd4 {[%emt 0:00:00]} 42. Kg2 Kf6 {[%emt 0:00:00]} 43. Bd7 Ke5 {[%emt 0:00:00]} 44. Kf3 f5 {[%emt 0:00:00]} 45. Bc6 h6 {[%emt 0:00:00]} 46. Bb7 Bc3 {[%emt 0:00:00]} 47. Ba8 h5 {[%emt 0:00:00]} 48. exf5 Kxf5 {[%emt 0:00:00]} 49. Be4+ Kf6 {[%emt 0:00:00]} 50. Ke3 g5 {[%emt 0:00:00]} 51. d4 Bb4 {[%emt 0:00:00]} 52. Bf3 h4 {[%emt 0:00:00]} 53. gxh4 Bd6 {[%emt 0:00:00]} 54. h3 Bf4+ {[%emt 0:00:00]} 55. Kd3 1/2-1/2

[Event "MPL 47th National Women Chess-ch 2022"]
[Site "Odisha"]
[Date "2022.02.25"]
[Round "1.11"]
[White "Pammi, Rani"]
[Black "Arpita, Mukherjee"]
[Result "0-1"]
[ECO "B92"]
[WhiteElo "1455"]
[BlackElo "2260"]
[Annotator "ChessBase"]
[PlyCount "36"]
[EventDate "2022.02.25"]
[EventCountry "IND"]
[SourceTitle "playchess.com"]
[Source "ChessBase"]
[SourceQuality "1"]
[TimeControl "5400+30"]

1. e4 {[%emt 0:00:06]} c5 {[%emt 0:01:19]} 2. Nf3 {[%emt 0:00:40]} d6 {[%emt 0:00:07]} 3. d4 {[%emt 0:00:22]} cxd4 {[%emt 0:00:07]} 4. Nxd4 {[%emt 0:00:07]} Nf6 {[%emt 0:00:09]} 5. Nc3 a6 {[%emt 0:00:30]} 6. Be2 e5 {[%emt 0:00:30]} 7. Nb3 Be6 {[%emt 0:00:30]} 8. Be3 Be7 {[%emt 0:00:30]} 9. O-O O-O {[%emt 0:00:30]} 10. f4 exf4 {[%emt 0:00:30]} 11. Bxf4 Nc6 {[%emt 0:00:30]} 12. Kh1 b5 {[%emt 0:00:30]} 13. a3 Rc8 {[%emt 0:00:30]} 14. Rc1 Ne5 {[%emt 0:00:30]} 15. Bxe5 dxe5 {[%emt 0:00:30]} 16. Qxd8 Rfxd8 {[%emt 0:00:30]} 17. Nb1 Nxe4 {[%emt 0:00:30]} 18. Bf3 Nd6 {[%emt 0:00:30]} 0-1

[Event "MPL 47th National Women Chess-ch 2022"]
[Site "Odisha"]
[Date "2022.02.25"]
[Round "2.1"]
[White "Kheerthi Ganta"]
[Black "Vaishali R"]
[Result "0-1"]
[ECO "E62"]
[WhiteElo "2011"]
[BlackElo "2403"]
[Annotator "NA"]
[PlyCount "160"]
[EventDate "2022.02.25"]
[EventCountry "IND"]
[SourceTitle "playchess.com"]
[Source "ChessBase"]
[SourceQuality "1"]
[TimeControl "5400+30"]

1. d4 {[%emt 0:00:33]} Nf6 {[%emt 0:02:01]} 2. c4 {[%emt 0:01:16]} Nc6 {[%emt 0:01:01]} 3. Nf3 {[%emt 0:02:42]} e6 {[%emt 0:00:21]} 4. Nc3 {[%emt 0:01:18]} d6 {[%emt 0:05:51]} 5. g3 {[%emt 0:07:00]} g6 {[%emt 0:01:59]} 6. Bg2 {[%emt 0:03:15]} Bg7 {[%emt 0:00:03]} 7. O-O {[%emt 0:01:50]} O-O {[%emt 0:01:08]} 8. e4 {[%emt 0:04:07]} e5 {[%emt 0:01:02]} 9. dxe5 {[%emt 0:03:18]} (9. d5 $1 $14 Ne7 10. Re1) 9... Nxe5 $14 {[%emt 0:00:24]} 10. Nxe5 {[%emt 0:02:44]} dxe5 {[%emt 0:00:03]} 11. Bg5 {[%emt 0:02:46]} c6 {[%emt 0:01:08]} 12. Qxd8 {[%emt 0:02:57]} Rxd8 {[%emt 0:00:03]} 13. Rad1 {[%emt 0:00:22]} Be6 {[%emt 0:04:58]} 14. b3 {[%emt 0:00:43]} h6 {[%emt 0:02:38]} 15. Bc1 {[%emt 0:01:17]} Nd7 {[%emt 0:19:48]} 16. Be3 {[%emt 0:02:53]} Bf8 {[%emt 0:00:57]} 17. Rd3 {[%emt 0:02:59]} Nc5 {[%emt 0:09:28]} 18. Rxd8 {[%emt 0:01:12]} Rxd8 {[%emt 0:00:03]} 19. Rd1 {[%emt 0:00:25]} Rxd1+ {[%emt 0:08:40]} 20. Nxd1 {[%emt 0:00:13]} f5 {[%emt 0:00:19]} 21. Nc3 {[%emt 0:01:44]} a5 {[%emt 0:01:11]} 22. f3 {[%emt 0:16:04]} a4 {[%emt 0:09:26]} 23. b4 {[%emt 0:01:17]} Nd3 {[%emt 0:00:22]} 24. a3 {[%emt 0:00:59]} f4 {[%emt 0:02:00]} 25. Bd2 {[%emt 0:01:58]} Bxc4 {[%emt 0:06:17]} 26. Nxa4 {[%emt 0:00:45]} Bb3 {[%emt 0:04:55]} 27. Nc3 {[%emt 0:01:35]} Bd6 {[%emt 0:03:00]} 28. Bf1 {[%emt 0:01:16]} Bc2 {[%emt 0:02:04]} 29. Na2 {[%emt 0:03:18]} g5 {[%emt 0:01:47]} 30. Nc1 {[%emt 0:04:26]} Nb2 {[%emt 0:03:12]} 31. Bc3 {[%emt 0:01:07]} Na4 {[%emt 0:01:11]} 32. Bd2 {[%emt 0:00:31]} b5 {[%emt 0:05:07]} 33. Bh3 {[%emt 0:02:46]} Nb6 {[%emt 0:00:31]} 34. Be6+ {[%emt 0:00:30]} Kg7 {[%emt 0:00:11]} 35. Be1 {[%emt 0:04:47]} Kf6 {[%emt 0:00:48]} 36. Bf2 {[%emt 0:01:47]} Kxe6 {[%emt 0:02:05]} 37. Bxb6 {[%emt 0:00:09]} g4 {[%emt 0:00:11]} 38. Kf2 {[%emt 0:00:35]} h5 {[%emt 0:01:28]} 39. gxf4 {[%emt 0:01:11]} exf4 {[%emt 0:00:02]} 40. Ne2 {[%emt 0:00:14]} Bd1 {[%emt 0:00:49]} 41. Nd4+ {[%emt 0:02:25]} Kd7 {[%emt 0:00:02]} 42. Ke1 {[%emt 0:01:25]} Ba4 {[%emt 0:00:06]} 43. Kf2 {[%emt 0:00:37]} Bd1 {[%emt 0:00:18]} 44. Ke1 {[%emt 0:00:01]} Ba4 {[%emt 0:00:02]} 45. Kf2 {[%emt 0:00:01]} Be5 {[%emt 0:01:09]} 46. Nf5 {[%emt 0:01:58]} Bb2 {[%emt 0:01:12]} 47. Bc5 {[%emt 0:00:16]} Bd1 {[%emt 0:00:40]} 48. Nh4 {[%emt 0:00:09]} Ke6 {[%emt 0:00:51]} 49. Ke1 {[%emt 0:00:47]} Bb3 {[%emt 0:01:08]} 50. Ng6 {[%emt 0:00:52]} Bc1 {[%emt 0:00:27]} 51. Nh4 {[%emt 0:00:35]} Bxa3 {[%emt 0:00:20]} 52. Kd2 {[%emt 0:00:12]} Bb2 {[%emt 0:01:05]} 53. Ke2 {[%emt 0:00:23]} Bc1 {[%emt 0:00:23]} 54. Ke1 {[%emt 0:00:33]} Kf6 {[%emt 0:00:21]} 55. Ke2 {[%emt 0:00:15]} Bc4+ {[%emt 0:00:38]} 56. Kf2 {[%emt 0:00:07]} Be6 {[%emt 0:00:23]} 57. Ke1 {[%emt 0:00:28]} Bb2 {[%emt 0:00:26]} 58. Kf2 {[%emt 0:01:02]} Bc3 {[%emt 0:00:14]} 59. Ng2 {[%emt 0:00:19]} Be5 {[%emt 0:00:30]} 60. Ne1 {[%emt 0:00:13]} Bc4 {[%emt 0:00:56]} 61. Ng2 {[%emt 0:00:27]} Bd3 {[%emt 0:00:33]} 62. Ne1 {[%emt 0:00:22]} Bb1 {[%emt 0:00:02]} 63. Ng2 {[%emt 0:00:09]} Ke6 {[%emt 0:01:01]} 64. Ke2 {[%emt 0:00:12]} Bc2 {[%emt 0:00:10]} 65. Ne1 {[%emt 0:01:03]} Bb1 {[%emt 0:00:07]} 66. Ng2 {[%emt 0:00:02]} Bc7 {[%emt 0:00:18]} 67. Kf2 {[%emt 0:00:21]} Ke5 {[%emt 0:00:37]} 68. Nh4 {[%emt 0:00:41]} Bc2 {[%emt 0:01:01]} 69. Ng6+ {[%emt 0:00:12]} Ke6 {[%emt 0:00:45]} 70. Ke2 {[%emt 0:01:09]} Kf6 {[%emt 0:00:22]} 71. Ne7 {[%emt 0:00:23]} gxf3+ {[%emt 0:00:07]} 72. Kxf3 {[%emt 0:00:12]} Bd1+ {[%emt 0:00:17]} 73. Kf2 {[%emt 0:00:31]} Ke5 {[%emt 0:00:14]} 74. Nxc6+ {[%emt 0:00:21]} Kxe4 {[%emt 0:00:03]} 75. Nd4 {[%emt 0:00:08]} Ba4 {[%emt 0:00:42]} 76. Ke2 {[%emt 0:00:15]} Be5 {[%emt 0:00:37]} 77. Nf3 {[%emt 0:00:20]} Bd1+ {[%emt 0:00:11]} 78. Kxd1 {[%emt 0:00:17]} Kxf3 {[%emt 0:00:02]} 79. Ke1 {[%emt 0:00:08]} Kg2 {[%emt 0:00:07]} 80. h4 {[%emt 0:00:37]} f3 {[%emt 0:00:06]} 0-1

[Event "MPL 47th National Women Chess-ch 2022"]
[Site "Odisha"]
[Date "2022.02.25"]
[Round "2.2"]
[White "Nandhidhaa, P V"]
[Black "Nimmy, A.G."]
[Result "1-0"]
[ECO "A07"]
[WhiteElo "2380"]
[BlackElo "2110"]
[Annotator "NA"]
[PlyCount "73"]
[EventDate "2022.02.25"]
[EventCountry "IND"]
[SourceTitle "playchess.com"]
[Source "ChessBase"]
[SourceQuality "1"]
[TimeControl "5400+30"]

1. Nf3 {[%emt 0:00:50]} d5 {[%emt 0:00:02]} 2. g3 {[%emt 0:00:07]} Bg4 {[%emt 0:00:29]} 3. Bg2 {[%emt 0:00:07]} c6 {[%emt 0:00:27]} 4. d3 {[%emt 0:00:38]} Nd7 {[%emt 0:01:06]} 5. O-O {[%emt 0:01:16]} Ngf6 {[%emt 0:00:39]} 6. h3 {[%emt 0:00:41]} Bh5 {[%emt 0:00:40]} 7. c4 {[%emt 0:01:49]} e6 {[%emt 0:03:30]} 8. cxd5 $11 {[%emt 0:00:12]} exd5 {[%emt 0:03:02]} 9. e4 {[%emt 0:00:55]} dxe4 {[%emt 0:03:58]} 10. dxe4 {[%emt 0:00:07]} Nc5 {[%emt 0:01:36]} 11. Nc3 {[%emt 0:05:27]} Be7 {[%emt 0:04:04]} 12. Qc2 {[%emt 0:08:15]} Qd3 {[%emt 0:09:59]} 13. Ne1 {[%emt 0:03:34]} Qxc2 {[%emt 0:00:56]} 14. Nxc2 {[%emt 0:00:02]} Bg6 {[%emt 0:02:03]} 15. Nd4 {[%emt 0:18:25]} Nfxe4 {[%emt 0:10:00]} 16. Nxe4 {[%emt 0:05:12]} Nxe4 {[%emt 0:04:31]} 17. Re1 {[%emt 0:03:21]} Nc5 {[%emt 0:13:00]} 18. Nxc6 {[%emt 0:04:05]} Ne6 {[%emt 0:01:24]} 19. Be3 {[%emt 0:09:17]} Bf6 {[%emt 0:02:12]} 20. Bd4 {[%emt 0:11:12]} bxc6 {[%emt 0:24:47]} 21. Bxc6+ {[%emt 0:00:06]} Ke7 {[%emt 0:00:20]} 22. Bc5+ {[%emt 0:01:30]} Kd8 {[%emt 0:00:03]} 23. Rxe6 {[%emt 0:00:53]} fxe6 {[%emt 0:01:29]} 24. Bxa8 {[%emt 0:00:14]} Bxb2 {[%emt 0:12:13]} 25. Re1 {[%emt 0:01:09]} Kd7 {[%emt 0:00:00]} 26. Bf3 {[%emt 0:00:21]} a5 {[%emt 0:00:00]} 27. Rd1+ {[%emt 0:01:16]} Kc7 {[%emt 0:00:00]} 28. Rd6 {[%emt 0:01:34]} e5 {[%emt 0:00:00]} 29. Rc6+ {[%emt 0:07:12]} Kd7 {[%emt 0:00:00]} 30. Ra6 {[%emt 0:00:08]} Bc3 {[%emt 0:00:00]} 31. Bd5 {[%emt 0:05:27]} Rb8 {[%emt 0:00:00]} 32. Ra7+ {[%emt 0:00:41]} Kc8 {[%emt 0:00:32]} 33. Bd6 {[%emt 0:04:45]} Rb1+ {[%emt 0:03:19]} 34. Kh2 {[%emt 0:00:45]} Bf5 {[%emt 0:00:31]} 35. Bc6 {[%emt 0:03:04]} Kd8 {[%emt 0:00:14]} 36. Rxg7 {[%emt 0:00:35]} Be6 {[%emt 0:01:24]} 37. Re7 {[%emt 0:00:15]} 1-0

[Event "MPL 47th National Women Chess-ch 2022"]
[Site "Odisha"]
[Date "2022.02.25"]
[Round "2.3"]
[White "Bhagyashree Patil"]
[Black "Gomes, Mary Ann"]
[Result "0-1"]
[ECO "D02"]
[WhiteElo "1974"]
[BlackElo "2361"]
[Annotator "ChessBase"]
[PlyCount "46"]
[EventDate "2022.02.25"]
[EventCountry "IND"]
[SourceTitle "playchess.com"]
[Source "ChessBase"]
[SourceQuality "1"]
[TimeControl "5400+30"]

1. d4 {[%emt 0:00:02]} Nf6 {[%emt 0:00:12]} 2. Nf3 {[%emt 0:00:06]} e6 {[%emt 0:00:05]} 3. g3 {[%emt 0:00:29]} c5 {[%emt 0:00:13]} 4. Bg2 {[%emt 0:00:15]} cxd4 {[%emt 0:01:31]} 5. Nxd4 {[%emt 0:00:47]} d5 {[%emt 0:00:07]} 6. O-O {[%emt 0:01:04]} Be7 {[%emt 0:02:59]} 7. b3 {[%emt 0:00:52]} Nc6 {[%emt 0:02:58]} 8. Bb2 {[%emt 0:00:33]} O-O {[%emt 0:00:19]} 9. Nd2 {[%emt 0:01:18]} Nxd4 {[%emt 0:01:00]} 10. Bxd4 {[%emt 0:00:03]} Bd7 {[%emt 0:00:55]} 11. e4 {[%emt 0:04:12]} Bc6 {[%emt 0:09:12]} 12. exd5 {[%emt 0:01:57]} Bxd5 {[%emt 0:00:31]} 13. Nf3 {[%emt 0:00:27]} b5 {[%emt 0:02:04]} 14. Bb2 {[%emt 0:04:46]} Qb6 {[%emt 0:02:48]} 15. Ne5 {[%emt 0:00:43]} Rad8 {[%emt 0:03:54]} 16. Qe2 {[%emt 0:01:52]} Bxg2 {[%emt 0:06:45]} 17. Kxg2 {[%emt 0:00:03]} Qb7+ {[%emt 0:00:05]} 18. Kg1 {[%emt 0:04:21]} Ne4 {[%emt 0:01:41]} 19. Rad1 {[%emt 0:01:50]} f6 {[%emt 0:07:50]} 20. Ng4 {[%emt 0:05:46]} Rxd1 {[%emt 0:05:03]} 21. Rxd1 {[%emt 0:00:22]} Ng5 {[%emt 0:01:10]} 22. h4 {[%emt 0:02:14]} Nf3+ {[%emt 0:01:11]} 23. Kf1 {[%emt 0:01:05]} Nd4 {[%emt 0:01:17]} 0-1

[Event "MPL 47th National Women Chess-ch 2022"]
[Site "Odisha"]
[Date "2022.02.25"]
[Round "2.4"]
[White "Soumya, Swaminathan"]
[Black "Jyothsna L"]
[Result "1-0"]
[ECO "C11"]
[WhiteElo "2360"]
[BlackElo "2052"]
[Annotator "NA"]
[PlyCount "83"]
[EventDate "2022.02.25"]
[EventCountry "IND"]
[SourceTitle "playchess.com"]
[Source "ChessBase"]
[SourceQuality "1"]
[TimeControl "5400+30"]

1. e4 {[%emt 0:00:29]} e6 {[%emt 0:00:26]} 2. d4 {[%emt 0:01:34]} d5 {[%emt 0:00:04]} 3. Nc3 {[%emt 0:00:13]} Nf6 {[%emt 0:00:05]} 4. e5 {[%emt 0:00:19]} Nfd7 {[%emt 0:00:14]} 5. f4 {[%emt 0:00:19]} c5 {[%emt 0:00:25]} 6. Nf3 {[%emt 0:00:02]} Nc6 {[%emt 0:01:00]} 7. Be3 {[%emt 0:00:05]} cxd4 {[%emt 0:00:22]} 8. Nxd4 {[%emt 0:00:06]} Bc5 {[%emt 0:00:16]} 9. Qd2 {[%emt 0:01:16]} O-O {[%emt 0:00:39]} 10. O-O-O {[%emt 0:02:58]} a6 {[%emt 0:01:16]} 11. h4 {[%emt 0:04:18]} Nxd4 {[%emt 0:01:17]} 12. Bxd4 {[%emt 0:00:07]} b5 {[%emt 0:00:41]} 13. h5 {[%emt 0:06:20]} b4 {[%emt 0:12:06]} 14. Na4 {[%emt 0:15:07]} Bxd4 {[%emt 0:03:17]} 15. Qxd4 {[%emt 0:00:02]} a5 {[%emt 0:24:04]} 16. Kb1 {[%emt 0:03:05]} Ba6 {[%emt 0:08:23]} 17. Bxa6 {[%emt 0:10:24]} Rxa6 {[%emt 0:00:06]} 18. c4 {[%emt 0:00:14]} bxc3 {[%emt 0:02:36]} 19. Qxc3 {[%emt 0:00:24]} Qb8 {[%emt 0:12:10]} 20. Rc1 {[%emt 0:08:27]} Qb5 {[%emt 0:14:54]} 21. b3 {[%emt 0:06:30]} Nb6 {[%emt 0:09:56]} 22. Nc5 {[%emt 0:00:48]} Ra7 {[%emt 0:00:34]} 23. a4 {[%emt 0:00:44]} Qe8 {[%emt 0:00:23]} 24. h6 {[%emt 0:01:17]} g6 {[%emt 0:00:22]} 25. Qd4 {[%emt 0:10:37]} Qb8 {[%emt 0:01:49]} 26. Ka2 {[%emt 0:00:12]} Nd7 {[%emt 0:01:43]} 27. Nd3 {[%emt 0:03:11]} Rb7 {[%emt 0:01:14]} 28. Rc3 {[%emt 0:00:04]} Rc8 {[%emt 0:00:55]} 29. Rhc1 {[%emt 0:02:42]} Rbc7 {[%emt 0:00:33]} 30. g4 {[%emt 0:00:26]} Kf8 {[%emt 0:01:45]} 31. f5 {[%emt 0:01:26]} Ke7 {[%emt 0:00:26]} 32. Kb2 {[%emt 0:08:16]} Rxc3 {[%emt 0:00:50]} 33. Rxc3 {[%emt 0:00:20]} Rxc3 {[%emt 0:00:57]} 34. Qxc3 {[%emt 0:08:15]} Qb6 {[%emt 0:00:07]} 35. f6+ {[%emt 0:00:42]} Kd8 {[%emt 0:00:28]} 36. Ka2 {[%emt 0:05:06]} Qc7 {[%emt 0:00:39]} 37. Qb2 {[%emt 0:00:17]} Nc5 {[%emt 0:00:33]} 38. Qa3 {[%emt 0:00:18]} Nxd3 {[%emt 0:00:52]} 39. Qf8+ {[%emt 0:00:04]} Kd7 {[%emt 0:00:15]} 40. Qxf7+ {[%emt 0:00:01]} Kc6 {[%emt 0:00:21]} 41. Qxc7+ {[%emt 0:00:02]} Kxc7 {[%emt 0:00:07]} 42. f7 {[%emt 0:00:02]} 1-0

[Event "MPL 47th National Women Chess-ch 2022"]
[Site "Odisha"]
[Date "2022.02.25"]
[Round "2.5"]
[White "Lakshmi C"]
[Black "Padmini, Rout"]
[Result "0-1"]
[ECO "E61"]
[WhiteElo "1968"]
[BlackElo "2350"]
[Annotator "NA"]
[PlyCount "92"]
[EventDate "2022.02.25"]
[EventCountry "IND"]
[SourceTitle "playchess.com"]
[Source "ChessBase"]
[SourceQuality "1"]
[TimeControl "5400+30"]

1. d4 {[%emt 0:00:18]} Nf6 {[%emt 0:01:07]} 2. c4 {[%emt 0:00:15]} c5 {[%emt 0:00:57]} 3. e3 {[%emt 0:01:10]} g6 {[%emt 0:01:12]} 4. Nc3 {[%emt 0:00:34]} Bg7 {[%emt 0:00:14]} 5. Nf3 {[%emt 0:04:05]} O-O {[%emt 0:00:13]} 6. d5 {[%emt 0:06:44]} e6 {[%emt 0:01:58]} 7. e4 {[%emt 0:06:35]} exd5 {[%emt 0:01:07]} 8. exd5 {[%emt 0:02:13]} d6 {[%emt 0:02:07]} 9. Be2 {[%emt 0:01:07]} Bf5 {[%emt 0:03:46]} 10. O-O {[%emt 0:04:46]} Ne4 {[%emt 0:01:07]} 11. Nxe4 {[%emt 0:16:34]} Bxe4 {[%emt 0:00:19]} 12. Ng5 {[%emt 0:04:11]} Bf5 {[%emt 0:01:22]} 13. Bd3 {[%emt 0:09:03]} Bxd3 {[%emt 0:03:56]} 14. Qxd3 {[%emt 0:03:59]} Nd7 {[%emt 0:07:55]} 15. f4 {[%emt 0:01:53]} h6 {[%emt 0:24:30]} 16. Ne4 {[%emt 0:04:07]} Nf6 {[%emt 0:08:57]} 17. Nf2 {[%emt 0:30:01]} a6 {[%emt 0:03:24]} 18. Bd2 {[%emt 0:00:57]} b5 {[%emt 0:07:46]} 19. b3 {[%emt 0:00:25]} Qd7 {[%emt 0:01:44]} 20. Rae1 {[%emt 0:00:50]} Rfe8 {[%emt 0:00:30]} 21. Bc3 {[%emt 0:00:32]} b4 {[%emt 0:09:52]} 22. Bd2 {[%emt 0:00:12]} a5 {[%emt 0:00:51]} 23. h3 {[%emt 0:00:52]} h5 {[%emt 0:02:02]} 24. Nd1 {[%emt 0:00:20]} Qf5 {[%emt 0:05:02]} 25. Qxf5 {[%emt 0:00:31]} gxf5 {[%emt 0:00:02]} 26. Kh2 {[%emt 0:00:40]} Rxe1 {[%emt 0:09:12]} 27. Rxe1 {[%emt 0:00:29]} Kh7 {[%emt 0:00:33]} 28. Ne3 {[%emt 0:00:23]} Kg6 {[%emt 0:00:01]} 29. Bc1 {[%emt 0:00:29]} a4 {[%emt 0:00:31]} 30. Re2 {[%emt 0:00:41]} h4 {[%emt 0:01:32]} 31. g3 {[%emt 0:00:27]} axb3 {[%emt 0:01:28]} 32. axb3 {[%emt 0:00:01]} hxg3+ {[%emt 0:00:35]} 33. Kxg3 {[%emt 0:00:02]} Ra1 {[%emt 0:00:30]} 34. Bb2 {[%emt 0:00:53]} Ne4+ {[%emt 0:00:05]} 35. Kf3 {[%emt 0:00:04]} Rg1 {[%emt 0:00:20]} 36. Ng2 {[%emt 0:00:59]} Rf1+ {[%emt 0:00:27]} 37. Ke3 {[%emt 0:00:09]} Bxb2 {[%emt 0:01:00]} 38. Rxb2 {[%emt 0:00:05]} Rh1 {[%emt 0:00:36]} 39. h4 {[%emt 0:01:49]} Rh3+ {[%emt 0:00:13]} 40. Ke2 {[%emt 0:00:02]} Kh5 {[%emt 0:00:16]} 41. Ke1 {[%emt 0:00:55]} Kg4 {[%emt 0:00:22]} 42. Kf1 {[%emt 0:00:36]} Rh1+ {[%emt 0:00:15]} 43. Ke2 {[%emt 0:00:04]} Kg3 {[%emt 0:00:20]} 44. Kd3 {[%emt 0:00:54]} Rh2 {[%emt 0:00:38]} 45. Ne3 {[%emt 0:00:11]} Rxb2 {[%emt 0:00:14]} 46. Nxf5+ {[%emt 0:00:20]} Kxf4 {[%emt 0:00:04]} 0-1